[Event "Late-Titled-Tuesday-Blitz-March-19-2024"]
[Site "Chess.com"]
[Date "2024.03.19"]
[Round "1"]
[White "Goryachkina"]
[Black "ViktoriyaTarasova"]
[Result "1-0"]
[WhiteElo "2649"]
[BlackElo "2310"]
[TimeControl "180+1"]
[EndTime "14:07:14 PDT"]
[Termination "Goryachkina won on time"]

1. e4 {[%clk 0:02:58.9]} 1... e5 {[%clk 0:02:59.8]} 2. Nf3 {[%clk 0:02:58.5]}
2... Nc6 {[%clk 0:03:00]} 3. Bc4 {[%clk 0:02:57.8]} 3... Bc5 {[%clk 0:02:58.9]}
4. c3 {[%clk 0:02:56.7]} 4... Nf6 {[%clk 0:02:58.8]} 5. d4 {[%clk 0:02:55.3]}
5... exd4 {[%clk 0:02:58.5]} 6. e5 {[%clk 0:02:55.1]} 6... d5 {[%clk 0:02:55.7]}
7. Bb5 {[%clk 0:02:53.8]} 7... Ne4 {[%clk 0:02:55.4]} 8. cxd4 {[%clk 0:02:53.6]}
8... Bb6 {[%clk 0:02:55.1]} 9. Nc3 {[%clk 0:02:52.9]} 9... O-O {[%clk
0:02:51.7]} 10. Be3 {[%clk 0:02:52.6]} 10... Ne7 {[%clk 0:02:50.6]} 11. O-O
{[%clk 0:02:41.7]} 11... Nf5 {[%clk 0:02:25]} 12. Bd3 {[%clk 0:02:30.6]} 12...
Nxe3 {[%clk 0:02:08.8]} 13. fxe3 {[%clk 0:02:30.5]} 13... f5 {[%clk 0:01:52.6]}
14. exf6 {[%clk 0:02:23.9]} 14... Nxf6 {[%clk 0:01:49.8]} 15. Qc2 {[%clk
0:02:15.7]} 15... h6 {[%clk 0:01:06.7]} 16. Ne5 {[%clk 0:02:11.1]} 16... c6
{[%clk 0:01:06]} 17. Rf3 {[%clk 0:01:46.9]} 17... Bc7 {[%clk 0:01:05.9]} 18.
Raf1 {[%clk 0:01:40.1]} 18... Be6 {[%clk 0:00:59]} 19. h3 {[%clk 0:01:11.8]}
19... Bxe5 {[%clk 0:00:43.3]} 20. dxe5 {[%clk 0:01:11.6]} 20... Nd7 {[%clk
0:00:44]} 21. Rxf8+ {[%clk 0:01:02.1]} 21... Nxf8 {[%clk 0:00:43.7]} 22. Ne2
{[%clk 0:00:57.8]} 22... Qg5 {[%clk 0:00:39.5]} 23. Qd2 {[%clk 0:00:46.9]} 23...
Qxe5 {[%clk 0:00:38.3]} 24. Bb1 {[%clk 0:00:43.2]} 24... Bf7 {[%clk 0:00:30.8]}
25. Nd4 {[%clk 0:00:39]} 25... Re8 {[%clk 0:00:29.4]} 26. Rf3 {[%clk 0:00:29.5]}
26... Ne6 {[%clk 0:00:15.7]} 27. Qd3 {[%clk 0:00:18.4]} 27... g6 {[%clk
0:00:12.9]} 28. Rxf7 {[%clk 0:00:11.6]} 28... Kxf7 {[%clk 0:00:05.7]} 29. Qxg6+
{[%clk 0:00:11.6]} 29... Ke7 {[%clk 0:00:04.1]} 30. Nf5+ {[%clk 0:00:10]} 30...
Kd8 {[%clk 0:00:03.7]} 31. Qxh6 {[%clk 0:00:09.9]} 1-0

[Event "Late-Titled-Tuesday-Blitz-March-19-2024"]
[Site "Chess.com"]
[Date "2024.03.19"]
[Round "1"]
[White "ahkashefi2800"]
[Black "finec2"]
[Result "1-0"]
[WhiteElo "2615"]
[BlackElo "2256"]
[TimeControl "180+1"]
[EndTime "14:07:15 PDT"]
[Termination "ahkashefi2800 won by resignation"]

1. d4 {[%clk 0:02:59]} 1... Nf6 {[%clk 0:02:58.5]} 2. Nf3 {[%clk 0:02:59]} 2...
g6 {[%clk 0:02:58.7]} 3. g3 {[%clk 0:02:59.2]} 3... Bg7 {[%clk 0:02:59.1]} 4.
Bg2 {[%clk 0:02:59.5]} 4... O-O {[%clk 0:02:59.5]} 5. O-O {[%clk 0:02:59.7]}
5... d6 {[%clk 0:02:59.8]} 6. c4 {[%clk 0:02:59.6]} 6... c5 {[%clk 0:03:00]} 7.
Nc3 {[%clk 0:02:58.7]} 7... Nc6 {[%clk 0:03:00.1]} 8. d5 {[%clk 0:02:48.3]} 8...
Na5 {[%clk 0:03:00.1]} 9. Nd2 {[%clk 0:02:47.9]} 9... e6 {[%clk 0:02:59.2]} 10.
e4 {[%clk 0:02:46.9]} 10... exd5 {[%clk 0:02:58.6]} 11. cxd5 {[%clk 0:02:44.3]}
11... a6 {[%clk 0:02:54.9]} 12. a3 {[%clk 0:02:43.9]} 12... b5 {[%clk
0:02:54.1]} 13. b4 {[%clk 0:02:27.9]} 13... Nb7 {[%clk 0:02:53.5]} 14. Bb2
{[%clk 0:02:23.9]} 14... Nd7 {[%clk 0:02:39.7]} 15. h3 {[%clk 0:02:19.2]} 15...
Ne5 {[%clk 0:02:36]} 16. Qc2 {[%clk 0:02:18.6]} 16... c4 {[%clk 0:02:35.6]} 17.
Ne2 {[%clk 0:02:13.2]} 17... Nd3 {[%clk 0:02:01.8]} 18. Bxg7 {[%clk 0:02:11.9]}
18... Kxg7 {[%clk 0:02:02.7]} 19. f4 {[%clk 0:02:10]} 19... Kg8 {[%clk
0:01:48.8]} 20. Kh2 {[%clk 0:02:06.5]} 20... a5 {[%clk 0:01:47.2]} 21. Nxc4
{[%clk 0:01:49.8]} 21... bxc4 {[%clk 0:01:42.2]} 22. Qxc4 {[%clk 0:01:49.3]}
22... Nb2 {[%clk 0:01:25.6]} 23. Qb3 {[%clk 0:01:47.8]} 23... Qf6 {[%clk
0:01:22.8]} 24. e5 {[%clk 0:01:43.3]} 24... dxe5 {[%clk 0:00:49.5]} 25. Qxb2
{[%clk 0:01:41.7]} 25... axb4 {[%clk 0:00:49.6]} 26. fxe5 {[%clk 0:01:28.9]}
26... Qb6 {[%clk 0:00:47.6]} 27. e6 {[%clk 0:01:12.1]} 27... f5 {[%clk
0:00:31.1]} 28. Qxb4 {[%clk 0:01:04.1]} 28... Qxb4 {[%clk 0:00:30.4]} 29. axb4
{[%clk 0:01:04]} 29... Rxa1 {[%clk 0:00:30.4]} 30. Rxa1 {[%clk 0:01:03.7]} 30...
Nd6 {[%clk 0:00:31.3]} 31. Nd4 {[%clk 0:00:59.5]} 31... Kg7 {[%clk 0:00:30.1]}
32. Ra8 {[%clk 0:00:57.3]} 32... Bb7 {[%clk 0:00:26.3]} 33. Ra7 {[%clk
0:00:54.8]} 33... Kf6 {[%clk 0:00:26]} 34. Nb5 {[%clk 0:00:46.6]} 34... Nxb5
{[%clk 0:00:13.6]} 35. Rxb7 {[%clk 0:00:46.5]} 35... Nd6 {[%clk 0:00:13.7]} 36.
Rxh7 {[%clk 0:00:45.9]} 36... Rb8 {[%clk 0:00:13.8]} 37. Rd7 {[%clk 0:00:43.7]}
37... Ne4 {[%clk 0:00:09.2]} 38. Rf7+ {[%clk 0:00:42.2]} 38... Ke5 {[%clk
0:00:09.5]} 39. e7 {[%clk 0:00:40.7]} 39... Kd6 {[%clk 0:00:09.2]} 40. Rf8
{[%clk 0:00:38.8]} 1-0

[Event "Late-Titled-Tuesday-Blitz-March-19-2024"]
[Site "Chess.com"]
[Date "2024.03.19"]
[Round "1"]
[White "DFeco"]
[Black "BardArtem"]
[Result "1-0"]
[WhiteElo "2444"]
[BlackElo "2735"]
[TimeControl "180+1"]
[EndTime "14:07:17 PDT"]
[Termination "DFeco won on time"]

1. d4 {[%clk 0:03:00.9]} 1... Nf6 {[%clk 0:02:58.4]} 2. Nf3 {[%clk 0:03:00.9]}
2... b6 {[%clk 0:02:58.6]} 3. Bf4 {[%clk 0:02:59.6]} 3... Bb7 {[%clk 0:02:59]}
4. e3 {[%clk 0:03:00.2]} 4... g6 {[%clk 0:02:59.6]} 5. Be2 {[%clk 0:02:58.7]}
5... Bg7 {[%clk 0:03:00.2]} 6. O-O {[%clk 0:02:58.8]} 6... O-O {[%clk
0:03:00.9]} 7. c4 {[%clk 0:02:55.3]} 7... d6 {[%clk 0:03:01.3]} 8. h3 {[%clk
0:02:53.7]} 8... Nbd7 {[%clk 0:03:01.4]} 9. Nc3 {[%clk 0:02:51.5]} 9... Qe8
{[%clk 0:03:00.8]} 10. Bh2 {[%clk 0:02:51.3]} 10... e5 {[%clk 0:03:01]} 11. Nd2
{[%clk 0:02:47.2]} 11... Qe7 {[%clk 0:02:56.4]} 12. Bf3 {[%clk 0:02:47.1]} 12...
Bxf3 {[%clk 0:02:56.6]} 13. Qxf3 {[%clk 0:02:46.4]} 13... Rfe8 {[%clk
0:02:45.2]} 14. a4 {[%clk 0:02:41.3]} 14... a5 {[%clk 0:02:44.1]} 15. Rad1
{[%clk 0:02:40]} 15... e4 {[%clk 0:02:37.7]} 16. Qe2 {[%clk 0:02:38.3]} 16... h5
{[%clk 0:02:38]} 17. Nb5 {[%clk 0:02:36.1]} 17... Rec8 {[%clk 0:02:21.7]} 18. f3
{[%clk 0:02:34.2]} 18... exf3 {[%clk 0:02:18.1]} 19. Rxf3 {[%clk 0:02:34]} 19...
Nf8 {[%clk 0:02:10.6]} 20. e4 {[%clk 0:02:31.4]} 20... Ne6 {[%clk 0:02:01.9]}
21. e5 {[%clk 0:02:29.9]} 21... dxe5 {[%clk 0:01:55.8]} 22. Bxe5 {[%clk
0:02:27.8]} 22... c6 {[%clk 0:01:52.1]} 23. Nc3 {[%clk 0:02:12.2]} 23... Re8
{[%clk 0:01:44]} 24. Qf2 {[%clk 0:02:11.8]} 24... Nh7 {[%clk 0:01:29.2]} 25.
Nde4 {[%clk 0:01:55.3]} 25... Neg5 {[%clk 0:01:05.8]} 26. Nxg5 {[%clk
0:01:42.8]} 26... Nxg5 {[%clk 0:01:06.7]} 27. Re3 {[%clk 0:01:39.8]} 27... Qd7
{[%clk 0:00:51]} 28. Rde1 {[%clk 0:01:37.4]} 28... Bxe5 {[%clk 0:00:36.3]} 29.
Rxe5 {[%clk 0:01:37.2]} 29... Rxe5 {[%clk 0:00:23.5]} 30. Rxe5 {[%clk
0:01:36.6]} 30... Nh7 {[%clk 0:00:22.2]} 31. d5 {[%clk 0:01:29.1]} 31... c5
{[%clk 0:00:22.2]} 32. Ne4 {[%clk 0:01:23]} 32... Qxa4 {[%clk 0:00:17.6]} 33.
Re7 {[%clk 0:01:17]} 33... Rf8 {[%clk 0:00:17.8]} 34. d6 {[%clk 0:01:11.9]}
34... Qd1+ {[%clk 0:00:08.9]} 35. Kh2 {[%clk 0:01:10.3]} 35... f5 {[%clk
0:00:06.7]} 36. Qg3 {[%clk 0:00:40.3]} 36... g5 {[%clk 0:00:01.1]} 37. Nxg5
{[%clk 0:00:36.1]} 37... h4 {[%clk 0:00:02]} 38. Qe5 {[%clk 0:00:27.1]} 38...
Nf6 {[%clk 0:00:02]} 39. Ne6 {[%clk 0:00:20.3]} 1-0

[Event "Late-Titled-Tuesday-Blitz-March-19-2024"]
[Site "Chess.com"]
[Date "2024.03.19"]
[Round "1"]
[White "Willhaven3"]
[Black "ProfessorChess101"]
[Result "1-0"]
[WhiteElo "2505"]
[BlackElo "2802"]
[TimeControl "180+1"]
[EndTime "14:07:18 PDT"]
[Termination "Willhaven3 won by resignation"]

1. e4 {[%clk 0:03:00.9]} 1... c5 {[%clk 0:02:56.6]} 2. Nc3 {[%clk 0:03:00]} 2...
a6 {[%clk 0:02:53.1]} 3. a4 {[%clk 0:02:59.1]} 3... e6 {[%clk 0:02:52.8]} 4. f4
{[%clk 0:02:53.3]} 4... d5 {[%clk 0:02:52.6]} 5. d3 {[%clk 0:02:52.1]} 5... Nc6
{[%clk 0:02:51.3]} 6. Nf3 {[%clk 0:02:51.5]} 6... g6 {[%clk 0:02:49.9]} 7. Be2
{[%clk 0:02:51.2]} 7... Bg7 {[%clk 0:02:50.1]} 8. O-O {[%clk 0:02:51.7]} 8...
Nge7 {[%clk 0:02:50.1]} 9. Qe1 {[%clk 0:02:51.9]} 9... Nd4 {[%clk 0:02:46.9]}
10. Bd1 {[%clk 0:02:51.1]} 10... O-O {[%clk 0:02:45.1]} 11. Kh1 {[%clk
0:02:51.1]} 11... Rb8 {[%clk 0:02:41.6]} 12. Ne5 {[%clk 0:02:49.2]} 12... b5
{[%clk 0:02:39.8]} 13. axb5 {[%clk 0:02:48.1]} 13... axb5 {[%clk 0:02:40.7]} 14.
Ra7 {[%clk 0:02:38.8]} 14... Nec6 {[%clk 0:02:39.4]} 15. Nxc6 {[%clk 0:02:37.3]}
15... Nxc6 {[%clk 0:02:40.3]} 16. Ra1 {[%clk 0:02:36.1]} 16... c4 {[%clk
0:02:39.4]} 17. e5 {[%clk 0:02:32.2]} 17... b4 {[%clk 0:02:34.7]} 18. Ne2 {[%clk
0:02:31.7]} 18... f6 {[%clk 0:02:34.2]} 19. dxc4 {[%clk 0:02:26.2]} 19... dxc4
{[%clk 0:02:26.8]} 20. exf6 {[%clk 0:02:18.7]} 20... Qxf6 {[%clk 0:02:26.7]} 21.
Ng3 {[%clk 0:02:14.9]} 21... Nd4 {[%clk 0:02:14.9]} 22. Bd2 {[%clk 0:01:57.3]}
22... b3 {[%clk 0:02:04.7]} 23. cxb3 {[%clk 0:01:57.6]} 23... cxb3 {[%clk
0:02:03]} 24. Bc3 {[%clk 0:01:57.7]} 24... Bb7 {[%clk 0:01:50.1]} 25. Bxb3
{[%clk 0:01:42.6]} 25... Kh8 {[%clk 0:01:49.5]} 26. Bc4 {[%clk 0:01:07.9]} 26...
Rbc8 {[%clk 0:01:40.3]} 27. Bd3 {[%clk 0:01:07.9]} 27... Qh4 {[%clk 0:01:24.6]}
28. Be4 {[%clk 0:01:04.5]} 28... Bxe4 {[%clk 0:01:11.8]} 29. Qxe4 {[%clk
0:01:05.4]} 29... Nf5 {[%clk 0:00:47.7]} 30. Bxg7+ {[%clk 0:01:02.6]} 30... Nxg7
{[%clk 0:00:45.7]} 31. Ra7 {[%clk 0:00:59.7]} 31... Qf6 {[%clk 0:00:44.1]} 32.
b4 {[%clk 0:00:56.1]} 32... Rc2 {[%clk 0:00:38.5]} 33. Qxc2 {[%clk 0:00:54.1]}
33... Qd4 {[%clk 0:00:36.6]} 34. Qf2 {[%clk 0:00:48.2]} 34... Qxb4 {[%clk
0:00:35.6]} 35. h3 {[%clk 0:00:48.1]} 35... Qc3 {[%clk 0:00:33.5]} 36. Rd1
{[%clk 0:00:42.9]} 36... e5 {[%clk 0:00:30.4]} 37. Rdd7 {[%clk 0:00:34.4]} 37...
Ne6 {[%clk 0:00:24.9]} 38. Rxh7+ {[%clk 0:00:33.8]} 38... Kg8 {[%clk 0:00:25.5]}
39. f5 {[%clk 0:00:33.2]} 39... Qd3 {[%clk 0:00:11]} 40. Rhe7 {[%clk 0:00:25.3]}
40... Rf6 {[%clk 0:00:05.2]} 41. Rxe6 {[%clk 0:00:23.2]} 1-0

[Event "Late-Titled-Tuesday-Blitz-March-19-2024"]
[Site "Chess.com"]
[Date "2024.03.19"]
[Round "1"]
[White "CuteSheepCloud"]
[Black "gympod"]
[Result "0-1"]
[WhiteElo "2646"]
[BlackElo "2370"]
[TimeControl "180+1"]
[EndTime "14:07:18 PDT"]
[Termination "gympod won by resignation"]

1. e4 {[%clk 0:02:59.4]} 1... c5 {[%clk 0:02:59.7]} 2. Nf3 {[%clk 0:02:58.7]}
2... d6 {[%clk 0:03:00.4]} 3. Bb5+ {[%clk 0:02:54.2]} 3... Bd7 {[%clk
0:02:59.9]} 4. Bxd7+ {[%clk 0:02:52.4]} 4... Qxd7 {[%clk 0:03:00.8]} 5. c3
{[%clk 0:02:48.8]} 5... Nf6 {[%clk 0:03:01.2]} 6. Qe2 {[%clk 0:02:49.1]} 6...
Nc6 {[%clk 0:03:00.3]} 7. d4 {[%clk 0:02:48.4]} 7... cxd4 {[%clk 0:02:54.4]} 8.
cxd4 {[%clk 0:02:49.3]} 8... e6 {[%clk 0:02:55]} 9. Nc3 {[%clk 0:02:42.1]} 9...
d5 {[%clk 0:02:44.5]} 10. e5 {[%clk 0:02:41.2]} 10... Ne4 {[%clk 0:02:45.1]} 11.
Nxe4 {[%clk 0:02:40.8]} 11... dxe4 {[%clk 0:02:46]} 12. Qxe4 {[%clk 0:02:41.4]}
12... Bb4+ {[%clk 0:02:46.4]} 13. Kf1 {[%clk 0:02:33.6]} 13... O-O {[%clk
0:02:38.8]} 14. g3 {[%clk 0:02:30.9]} 14... Rfd8 {[%clk 0:02:36.4]} 15. Be3
{[%clk 0:02:30.8]} 15... Ne7 {[%clk 0:02:31.5]} 16. Kg2 {[%clk 0:02:29.9]} 16...
Nd5 {[%clk 0:02:13]} 17. h4 {[%clk 0:02:29.1]} 17... Rac8 {[%clk 0:02:11.3]} 18.
Rhc1 {[%clk 0:02:28.5]} 18... Qa4 {[%clk 0:02:00.3]} 19. a3 {[%clk 0:02:18.5]}
19... Be7 {[%clk 0:01:58.5]} 20. h5 {[%clk 0:02:18.6]} 20... h6 {[%clk 0:01:58]}
21. g4 {[%clk 0:01:54.1]} 21... Qb3 {[%clk 0:01:53.6]} 22. Nd2 {[%clk
0:01:33.2]} 22... Nxe3+ {[%clk 0:01:43.3]} 23. Qxe3 {[%clk 0:01:30.9]} 23...
Qxb2 {[%clk 0:01:43.3]} 24. Rxc8 {[%clk 0:01:13.1]} 24... Rxc8 {[%clk
0:01:40.2]} 25. Rb1 {[%clk 0:01:13.1]} 25... Qc2 {[%clk 0:01:34.1]} 26. Rxb7
{[%clk 0:01:09.7]} 26... Bg5 {[%clk 0:01:28]} 27. Qf3 {[%clk 0:01:08.4]} 27...
Rc7 {[%clk 0:01:08]} 28. Rb8+ {[%clk 0:00:55.2]} 28... Kh7 {[%clk 0:01:08]} 29.
Qe4+ {[%clk 0:00:54.6]} 29... Qxe4+ {[%clk 0:01:07]} 30. Nxe4 {[%clk 0:00:55.5]}
30... Be7 {[%clk 0:01:06.1]} 31. Rb3 {[%clk 0:00:52.4]} 31... Rd7 {[%clk
0:01:03.8]} 32. Rd3 {[%clk 0:00:51.7]} 32... Rd5 {[%clk 0:00:58.7]} 33. Kf3
{[%clk 0:00:49.3]} 33... Ra5 {[%clk 0:00:58.7]} 34. Nc3 {[%clk 0:00:40.6]} 34...
Rxa3 {[%clk 0:00:51.7]} 35. Ke4 {[%clk 0:00:40.7]} 35... Bb4 {[%clk 0:00:47.6]}
36. Nb5 {[%clk 0:00:38.5]} 36... Rxd3 {[%clk 0:00:47.9]} 37. Kxd3 {[%clk
0:00:39.4]} 37... a5 {[%clk 0:00:46]} 38. Nd6 {[%clk 0:00:36.4]} 38... Kg8
{[%clk 0:00:45.2]} 39. Kc4 {[%clk 0:00:34.7]} 39... Bxd6 {[%clk 0:00:32]} 40.
exd6 {[%clk 0:00:35.6]} 40... Kf8 {[%clk 0:00:32.2]} 41. Kb5 {[%clk 0:00:29.2]}
41... Ke8 {[%clk 0:00:32.7]} 42. Kc6 {[%clk 0:00:25.1]} 42... Kd8 {[%clk
0:00:29.8]} 43. Kb5 {[%clk 0:00:25.3]} 43... Kd7 {[%clk 0:00:30.1]} 44. Kxa5
{[%clk 0:00:26]} 44... Kxd6 {[%clk 0:00:30.6]} 45. Kb4 {[%clk 0:00:26.8]} 45...
Kd5 {[%clk 0:00:31.2]} 46. Kc3 {[%clk 0:00:27.5]} 46... Ke4 {[%clk 0:00:26.1]}
47. Kc4 {[%clk 0:00:27.8]} 47... Kf4 {[%clk 0:00:26.5]} 48. d5 {[%clk
0:00:27.1]} 48... exd5+ {[%clk 0:00:25.8]} 49. Kxd5 {[%clk 0:00:28]} 49... Kxg4
{[%clk 0:00:26.4]} 50. Kd6 {[%clk 0:00:28.4]} 50... Kxh5 {[%clk 0:00:26.9]} 51.
Ke7 {[%clk 0:00:28.9]} 51... Kg6 {[%clk 0:00:27.6]} 52. Kd6 {[%clk 0:00:27.1]}
52... h5 {[%clk 0:00:27.7]} 53. Ke5 {[%clk 0:00:27.7]} 53... Kg5 {[%clk
0:00:28.4]} 54. Ke4 {[%clk 0:00:27.7]} 54... Kg4 {[%clk 0:00:28.8]} 55. Ke3
{[%clk 0:00:27]} 55... f5 {[%clk 0:00:28.6]} 0-1

[Event "Late-Titled-Tuesday-Blitz-March-19-2024"]
[Site "Chess.com"]
[Date "2024.03.19"]
[Round "1"]
[White "secretworker2027"]
[Black "KnightmareJoker"]
[Result "1-0"]
[WhiteElo "2640"]
[BlackElo "2296"]
[TimeControl "180+1"]
[EndTime "14:07:19 PDT"]
[Termination "secretworker2027 won by checkmate"]

1. Nf3 {[%clk 0:02:10.8]} 1... d5 {[%clk 0:03:00]} 2. e3 {[%clk 0:02:10.5]} 2...
Nf6 {[%clk 0:03:00.2]} 3. c4 {[%clk 0:02:10.2]} 3... e6 {[%clk 0:02:59.1]} 4. b3
{[%clk 0:02:05]} 4... Be7 {[%clk 0:02:58.8]} 5. Bb2 {[%clk 0:02:04.2]} 5... O-O
{[%clk 0:02:59.4]} 6. Be2 {[%clk 0:02:03.7]} 6... c5 {[%clk 0:02:59.6]} 7. O-O
{[%clk 0:02:03.8]} 7... Nc6 {[%clk 0:02:59.1]} 8. cxd5 {[%clk 0:02:04.2]} 8...
exd5 {[%clk 0:02:59.7]} 9. d4 {[%clk 0:02:04.9]} 9... cxd4 {[%clk 0:02:53.5]}
10. Nxd4 {[%clk 0:02:04.1]} 10... Nxd4 {[%clk 0:02:52.8]} 11. Qxd4 {[%clk
0:02:03.6]} 11... Be6 {[%clk 0:02:52.1]} 12. Nc3 {[%clk 0:02:02.3]} 12... Rc8
{[%clk 0:02:39.8]} 13. Rad1 {[%clk 0:02:00.2]} 13... Bc5 {[%clk 0:02:35.9]} 14.
Qh4 {[%clk 0:01:58]} 14... Ne4 {[%clk 0:02:29.9]} 15. Qxd8 {[%clk 0:01:55.4]}
15... Rfxd8 {[%clk 0:02:29.6]} 16. Nb5 {[%clk 0:01:50.7]} 16... a6 {[%clk
0:02:23.1]} 17. Nd4 {[%clk 0:01:46.9]} 17... Bxd4 {[%clk 0:02:23.4]} 18. Bxd4
{[%clk 0:01:47.4]} 18... Nc3 {[%clk 0:02:23.6]} 19. Bxc3 {[%clk 0:01:46.2]}
19... Rxc3 {[%clk 0:02:24.1]} 20. Rd2 {[%clk 0:01:44.6]} 20... Rc7 {[%clk
0:02:19.4]} 21. Rfd1 {[%clk 0:01:43.4]} 21... Rcd7 {[%clk 0:02:20]} 22. Rd4
{[%clk 0:01:42.2]} 22... Kf8 {[%clk 0:02:17.9]} 23. Bf3 {[%clk 0:01:42.6]} 23...
Ke7 {[%clk 0:02:15.7]} 24. h4 {[%clk 0:01:39]} 24... h6 {[%clk 0:02:12.1]} 25.
Kh2 {[%clk 0:01:38.5]} 25... Kf6 {[%clk 0:02:10.2]} 26. g4 {[%clk 0:01:34.5]}
26... Ke7 {[%clk 0:02:06.3]} 27. Kg3 {[%clk 0:01:34.5]} 27... Kf6 {[%clk
0:02:06.2]} 28. Bg2 {[%clk 0:01:32.3]} 28... Ke7 {[%clk 0:02:01.5]} 29. f4
{[%clk 0:01:30.2]} 29... f6 {[%clk 0:01:55.4]} 30. f5 {[%clk 0:01:27.1]} 30...
Bf7 {[%clk 0:01:56]} 31. Kf4 {[%clk 0:01:27.4]} 31... Rd6 {[%clk 0:01:54.1]} 32.
Rc1 {[%clk 0:01:24.1]} 32... Rc6 {[%clk 0:01:51.7]} 33. Rcd1 {[%clk 0:01:24.5]}
33... Rc2 {[%clk 0:01:40.8]} 34. R1d2 {[%clk 0:01:14.8]} 34... Rxd2 {[%clk
0:01:21]} 35. Rxd2 {[%clk 0:01:15.7]} 35... Kd6 {[%clk 0:01:18.6]} 36. e4 {[%clk
0:01:10]} 36... Kc5 {[%clk 0:01:15.4]} 37. exd5 {[%clk 0:01:04.7]} 37... Bxd5
{[%clk 0:01:15.2]} 38. b4+ {[%clk 0:01:04.1]} 38... Kc6 {[%clk 0:01:11.3]} 39.
Rc2+ {[%clk 0:01:03.6]} 39... Kb6 {[%clk 0:01:10]} 40. Rd2 {[%clk 0:01:03.7]}
40... Kc6 {[%clk 0:01:10.6]} 41. g5 {[%clk 0:00:42.7]} 41... Rd6 {[%clk
0:01:05]} 42. gxh6 {[%clk 0:00:41.5]} 42... gxh6 {[%clk 0:01:04.2]} 43. Rxd5
{[%clk 0:00:34.7]} 43... Rxd5 {[%clk 0:01:03.3]} 44. Kg4 {[%clk 0:00:35.3]}
44... Kd6 {[%clk 0:00:58.7]} 45. Bxd5 {[%clk 0:00:35.2]} 45... Kxd5 {[%clk
0:00:59.2]} 46. Kh5 {[%clk 0:00:35.1]} 46... Ke4 {[%clk 0:00:44.7]} 47. Kxh6
{[%clk 0:00:33.7]} 47... Kxf5 {[%clk 0:00:44.6]} 48. h5 {[%clk 0:00:34.4]} 48...
Kg4 {[%clk 0:00:43]} 49. Kg6 {[%clk 0:00:34.3]} 49... f5 {[%clk 0:00:43.8]} 50.
h6 {[%clk 0:00:35.2]} 50... f4 {[%clk 0:00:44.7]} 51. h7 {[%clk 0:00:36.1]}
51... f3 {[%clk 0:00:45.6]} 52. h8=Q {[%clk 0:00:36.4]} 52... f2 {[%clk
0:00:46.5]} 53. Qh1 {[%clk 0:00:36.5]} 53... Kg3 {[%clk 0:00:46.2]} 54. Qf1
{[%clk 0:00:37.2]} 54... b6 {[%clk 0:00:44.9]} 55. a4 {[%clk 0:00:37.5]} 55...
Kf3 {[%clk 0:00:44]} 56. Kf6 {[%clk 0:00:37.4]} 56... Kg3 {[%clk 0:00:44.3]} 57.
Ke5 {[%clk 0:00:37.8]} 57... Kf3 {[%clk 0:00:45.1]} 58. Kd4 {[%clk 0:00:38.2]}
58... b5 {[%clk 0:00:43.9]} 59. axb5 {[%clk 0:00:38.3]} 59... axb5 {[%clk
0:00:44.8]} 60. Kd3 {[%clk 0:00:38.9]} 60... Kg3 {[%clk 0:00:43.9]} 61. Ke3
{[%clk 0:00:39.8]} 61... Kh4 {[%clk 0:00:41.8]} 62. Qxf2+ {[%clk 0:00:39.5]}
62... Kh5 {[%clk 0:00:42.7]} 63. Qg3 {[%clk 0:00:39.8]} 63... Kh6 {[%clk
0:00:43.6]} 64. Kf4 {[%clk 0:00:40.7]} 64... Kh7 {[%clk 0:00:44.3]} 65. Kf5
{[%clk 0:00:41.6]} 65... Kh8 {[%clk 0:00:45.2]} 66. Kf6 {[%clk 0:00:42.1]} 66...
Kh7 {[%clk 0:00:45.8]} 67. Qg7# {[%clk 0:00:42.8]} 1-0

[Event "Late-Titled-Tuesday-Blitz-March-19-2024"]
[Site "Chess.com"]
[Date "2024.03.19"]
[Round "1"]
[White "platy3"]
[Black "LangesNasenhaar"]
[Result "1-0"]
[WhiteElo "2952"]
[BlackElo "2533"]
[TimeControl "180+1"]
[EndTime "14:07:20 PDT"]
[Termination "platy3 won on time"]

1. e4 {[%clk 0:03:00.9]} 1... g6 {[%clk 0:02:59.4]} 2. d4 {[%clk 0:02:57.8]}
2... Bg7 {[%clk 0:02:59.6]} 3. Nf3 {[%clk 0:02:57.8]} 3... c6 {[%clk 0:02:59.4]}
4. h3 {[%clk 0:02:57.2]} 4... d5 {[%clk 0:02:59.1]} 5. Nc3 {[%clk 0:02:58]} 5...
dxe4 {[%clk 0:02:58.7]} 6. Nxe4 {[%clk 0:02:58.8]} 6... Nf6 {[%clk 0:02:59.3]}
7. Ng3 {[%clk 0:02:56.6]} 7... O-O {[%clk 0:02:57.8]} 8. Bc4 {[%clk 0:02:57.1]}
8... Nbd7 {[%clk 0:02:55.1]} 9. O-O {[%clk 0:02:56.3]} 9... c5 {[%clk
0:02:55.6]} 10. Re1 {[%clk 0:02:50]} 10... cxd4 {[%clk 0:02:46.6]} 11. Nxd4
{[%clk 0:02:50.9]} 11... a6 {[%clk 0:02:33.4]} 12. c3 {[%clk 0:02:47.9]} 12...
e5 {[%clk 0:02:30.3]} 13. Nf3 {[%clk 0:02:38]} 13... Qc7 {[%clk 0:02:30.1]} 14.
Bb3 {[%clk 0:02:32.5]} 14... h6 {[%clk 0:02:20.3]} 15. Qe2 {[%clk 0:02:26.3]}
15... Re8 {[%clk 0:02:12.7]} 16. Be3 {[%clk 0:02:19.3]} 16... b6 {[%clk
0:02:02.8]} 17. Rad1 {[%clk 0:02:18.4]} 17... Nc5 {[%clk 0:01:53.1]} 18. Bxc5
{[%clk 0:02:04.5]} 18... Qxc5 {[%clk 0:01:50.8]} 19. Nxe5 {[%clk 0:02:04.4]}
19... Be6 {[%clk 0:01:42.2]} 20. Qf3 {[%clk 0:01:46.8]} 20... Bxb3 {[%clk
0:01:21.5]} 21. axb3 {[%clk 0:01:47.7]} 21... Rad8 {[%clk 0:01:20.8]} 22. b4
{[%clk 0:01:37.1]} 22... Rxd1 {[%clk 0:01:12]} 23. Qxd1 {[%clk 0:01:36.9]} 23...
Qc7 {[%clk 0:01:03.7]} 24. Nd3 {[%clk 0:01:32.7]} 24... Rd8 {[%clk 0:01:02.8]}
25. Qe2 {[%clk 0:01:31.4]} 25... Qc4 {[%clk 0:00:56.5]} 26. Rd1 {[%clk
0:01:29.8]} 26... Re8 {[%clk 0:00:52.1]} 27. Qc2 {[%clk 0:01:24.4]} 27... h5
{[%clk 0:00:51]} 28. Nf1 {[%clk 0:01:19.1]} 28... Bh6 {[%clk 0:00:48]} 29. Re1
{[%clk 0:01:14.9]} 29... Rd8 {[%clk 0:00:39.4]} 30. Ne5 {[%clk 0:01:13.3]} 30...
Qc7 {[%clk 0:00:38.3]} 31. Qb3 {[%clk 0:01:06.5]} 31... b5 {[%clk 0:00:36.3]}
32. Nxg6 {[%clk 0:01:02.2]} 32... Nd5 {[%clk 0:00:32.6]} 33. Rd1 {[%clk
0:00:40.4]} 33... Nf6 {[%clk 0:00:10.4]} 34. Rxd8+ {[%clk 0:00:38.4]} 34... Qxd8
{[%clk 0:00:10.8]} 35. Ne5 {[%clk 0:00:38.5]} 35... Qe7 {[%clk 0:00:08.4]} 36.
Nf3 {[%clk 0:00:33.3]} 36... Bf4 {[%clk 0:00:08.2]} 37. g3 {[%clk 0:00:30.4]}
37... Bc7 {[%clk 0:00:08.1]} 38. Qc2 {[%clk 0:00:29.3]} 38... Qe6 {[%clk
0:00:04.9]} 39. Kg2 {[%clk 0:00:28.7]} 39... Kg7 {[%clk 0:00:04]} 40. Ne3 {[%clk
0:00:26.9]} 40... Ne4 {[%clk 0:00:03.3]} 41. Nd4 {[%clk 0:00:26.1]} 41... Qe5
{[%clk 0:00:01.3]} 42. f4 {[%clk 0:00:22.3]} 1-0